[Event "Titled Tuesday Blitz June 20 Early 2023"]
[White "Kuznetsova, Olga"]
[Black "Rodriguez Polo, Mateo"]
[WhiteFideId "4191323"]
[BlackFideId "24509396"]
[WhiteElo "2134"]
[BlackElo "2117"]
[Result "1-0"]
[Round "5"]
[TimeControl "180+2"]
[Date "2023.06.20"]
[WhiteClock "0:00:35"]
[BlackClock "0:00:00"]
[Board "135"]

1. d4 {[%clk 0:02:57]}  Nf6 {[%clk 0:02:58]} 2. Nf3 {[%clk 0:02:54]}  d5 {[%clk 0:02:59]} 3. c4 {[%clk 0:02:54]}  e6 {[%clk 0:02:59]} 4. Nc3 {[%clk 0:02:55]}  dxc4 {[%clk 0:02:58]} 5. Bg5 {[%clk 0:02:54]}  Bb4 {[%clk 0:02:59]} 6. e3 {[%clk 0:02:53]}  b5 {[%clk 0:02:58]} 7. a4 {[%clk 0:02:43]}  c6 {[%clk 0:02:58]} 8. Ne5 {[%clk 0:02:41]}  Bb7 {[%clk 0:02:51]} 9. Qf3 {[%clk 0:02:38]}  h6 {[%clk 0:02:28]} 10. Bh4 {[%clk 0:02:34]}  a6 {[%clk 0:01:59]} 11. Be2 {[%clk 0:02:25]}  Be7 {[%clk 0:01:54]} 12. O-O {[%clk 0:02:19]}  O-O {[%clk 0:01:50]} 13. axb5 {[%clk 0:02:14]}  axb5 {[%clk 0:01:49]} 14. Rxa8 {[%clk 0:02:13]}  Bxa8 {[%clk 0:01:50]} 15. Nxb5 {[%clk 0:02:14]}  cxb5 {[%clk 0:01:13]} 16. Qxa8 {[%clk 0:02:13]}  Nbd7 {[%clk 0:01:07]} 17. Qb7 {[%clk 0:01:52]}  Qb6 {[%clk 0:00:57]} 18. Qxb6 {[%clk 0:01:32]}  Nxb6 {[%clk 0:00:58]} 19. Nc6 {[%clk 0:01:31]}  Bd6 {[%clk 0:00:52]} 20. Ra1 {[%clk 0:01:30]}  Rc8 {[%clk 0:00:45]} 21. Bf3 {[%clk 0:01:21]}  Nfd5 {[%clk 0:00:44]} 22. Na7 {[%clk 0:01:01]}  Ra8 {[%clk 0:00:40]} 23. Ra6 {[%clk 0:01:02]}  Bc7 {[%clk 0:00:17]} 24. Bg3 {[%clk 0:00:58]}  Bxg3 {[%clk 0:00:16]} 25. hxg3 {[%clk 0:00:58]}  b4 {[%clk 0:00:15]} 26. Kf1 {[%clk 0:00:49]}  c3 {[%clk 0:00:15]} 27. bxc3 {[%clk 0:00:48]}  bxc3 {[%clk 0:00:14]} 28. Ke2 {[%clk 0:00:48]}  Rb8 {[%clk 0:00:10]} 29. Nc6 {[%clk 0:00:45]}  Rc8 {[%clk 0:00:10]} 30. Rxb6 {[%clk 0:00:43]}  Nxb6 {[%clk 0:00:09]} 31. Ne7+ {[%clk 0:00:44]}  Kf8 {[%clk 0:00:09]} 32. Nxc8 {[%clk 0:00:45]}  Nxc8 {[%clk 0:00:10]} 33. Kd3 {[%clk 0:00:45]}  Nd6 {[%clk 0:00:11]} 34. Kxc3 {[%clk 0:00:46]}  Ke7 {[%clk 0:00:11]} 35. Kd3 {[%clk 0:00:45]}  f6 {[%clk 0:00:12]} 36. e4 {[%clk 0:00:46]}  e5 {[%clk 0:00:11]} 37. Bh5 {[%clk 0:00:42]}  exd4 {[%clk 0:00:06]} 38. Kxd4 {[%clk 0:00:42]}  Nb5+ {[%clk 0:00:07]} 39. Ke3 {[%clk 0:00:39]}  Nc7 {[%clk 0:00:08]} 40. f4 {[%clk 0:00:39]}  g5 {[%clk 0:00:08]} 41. Kd4 {[%clk 0:00:37]}  Nb5+ {[%clk 0:00:06]} 42. Kd3 {[%clk 0:00:37]}  Nc7 {[%clk 0:00:07]} 43. Be2 {[%clk 0:00:36]}  Kd6 {[%clk 0:00:06]} 44. Kd4 {[%clk 0:00:36]}  Ne6+ {[%clk 0:00:06]} 45. Ke3 {[%clk 0:00:36]}  Nc5 {[%clk 0:00:05]} 46. Bc4 {[%clk 0:00:36]}  Nd7 {[%clk 0:00:04]} 47. Kd4 {[%clk 0:00:36]}  Nc5 {[%clk 0:00:04]} 48. e5+ {[%clk 0:00:34]}  fxe5+ {[%clk 0:00:05]} 49. fxe5+ {[%clk 0:00:34]}  Kc6 {[%clk 0:00:05]} 50. Bd5+ {[%clk 0:00:34]}  Kb6 {[%clk 0:00:00]} 51. e6 {[%clk 0:00:35]} 1-0


[Site "https://www.chess.com"]

[Event "Titled Tuesday Blitz June 20 Early 2023"]
[White "Antonio, Jorge Carlos"]
[Black "Zaragatski, Ilja"]
[WhiteFideId "113190"]
[BlackFideId "4655192"]
[WhiteElo "2247"]
[BlackElo "2460"]
[Result "0-1"]
[Round "5"]
[TimeControl "180+2"]
[Date "2023.06.20"]
[WhiteClock "0:00:00"]
[BlackClock "0:00:47"]
[Board "136"]

1. e4 {[%clk 0:02:58]}  d6 {[%clk 0:02:58]} 2. Nf3 {[%clk 0:02:57]}  Nf6 {[%clk 0:02:58]} 3. Nc3 {[%clk 0:02:56]}  e5 {[%clk 0:02:57]} 4. d4 {[%clk 0:02:54]}  Nbd7 {[%clk 0:02:57]} 5. dxe5 {[%clk 0:02:52]}  dxe5 {[%clk 0:02:57]} 6. Bc4 {[%clk 0:02:48]}  Be7 {[%clk 0:02:53]} 7. O-O {[%clk 0:02:47]}  c6 {[%clk 0:02:51]} 8. Qe2 {[%clk 0:02:46]}  O-O {[%clk 0:02:50]} 9. h3 {[%clk 0:02:46]}  b5 {[%clk 0:02:47]} 10. Bb3 {[%clk 0:02:44]}  Qc7 {[%clk 0:02:45]} 11. Be3 {[%clk 0:02:41]}  Nc5 {[%clk 0:02:44]} 12. Rfd1 {[%clk 0:02:34]}  a5 {[%clk 0:02:41]} 13. Bxc5 {[%clk 0:02:29]}  Bxc5 {[%clk 0:02:40]} 14. Ng5 {[%clk 0:02:19]}  a4 {[%clk 0:02:17]} 15. Bxf7+ {[%clk 0:02:17]}  Rxf7 {[%clk 0:02:17]} 16. Nxf7 {[%clk 0:02:17]}  Kxf7 {[%clk 0:02:17]} 17. g4 {[%clk 0:02:08]}  Be6 {[%clk 0:02:02]} 18. Qf3 {[%clk 0:02:02]}  Kg8 {[%clk 0:01:58]} 19. Rd2 {[%clk 0:01:57]}  Rf8 {[%clk 0:01:57]} 20. Qg3 {[%clk 0:01:51]}  a3 {[%clk 0:01:34]} 21. b3 {[%clk 0:01:45]}  Bb4 {[%clk 0:01:13]} 22. Re2 {[%clk 0:01:38]}  Nd7 {[%clk 0:01:12]} 23. Rd1 {[%clk 0:01:31]}  Qa5 {[%clk 0:01:09]} 24. Nb1 {[%clk 0:01:26]}  Bc5 {[%clk 0:01:07]} 25. Kg2 {[%clk 0:01:17]}  b4 {[%clk 0:01:03]} 26. Nd2 {[%clk 0:01:05]}  Bd4 {[%clk 0:01:01]} 27. Nf3 {[%clk 0:01:00]}  c5 {[%clk 0:01:00]} 28. Nxd4 {[%clk 0:00:53]}  cxd4 {[%clk 0:00:59]} 29. Red2 {[%clk 0:00:39]}  Rf7 {[%clk 0:00:58]} 30. f3 {[%clk 0:00:35]}  Nf8 {[%clk 0:00:57]} 31. Rd3 {[%clk 0:00:34]}  Ng6 {[%clk 0:00:57]} 32. Kh2 {[%clk 0:00:31]}  Nf4 {[%clk 0:00:57]} 33. R3d2 {[%clk 0:00:31]}  Rc7 {[%clk 0:00:57]} 34. h4 {[%clk 0:00:27]}  Rc3 {[%clk 0:00:55]} 35. g5 {[%clk 0:00:24]}  Qc7 {[%clk 0:00:54]} 36. h5 {[%clk 0:00:21]}  Nxh5 {[%clk 0:00:49]} 37. Qh4 {[%clk 0:00:14]}  Nf4 {[%clk 0:00:49]} 38. g6 {[%clk 0:00:11]}  Nxg6 {[%clk 0:00:48]} 39. Qg5 {[%clk 0:00:00]}  Qf7 {[%clk 0:00:47]} 0-1


[Site "https://www.chess.com"]

[Event "Titled Tuesday Blitz June 20 Early 2023"]
[White "angelgab3"]
[Black "SicilianPanzer"]
[WhiteElo "2512"]
[BlackElo "2235"]
[Result "1-0"]
[Round "5"]
[TimeControl "180+2"]
[Date "2023.06.20"]
[WhiteClock "0:01:43"]
[BlackClock "0:00:00"]
[Board "138"]

1. e4 {[%clk 0:03:00]}  d6 {[%clk 0:02:59]} 2. d4 {[%clk 0:02:59]}  Nf6 {[%clk 0:02:59]} 3. Nc3 {[%clk 0:02:59]}  g6 {[%clk 0:02:58]} 4. f4 {[%clk 0:02:59]}  Bg7 {[%clk 0:02:58]} 5. Nf3 {[%clk 0:03:00]}  O-O {[%clk 0:02:57]} 6. e5 {[%clk 0:03:00]}  Nfd7 {[%clk 0:02:55]} 7. Bc4 {[%clk 0:02:59]}  Nb6 {[%clk 0:02:48]} 8. Bb3 {[%clk 0:02:55]}  Nc6 {[%clk 0:02:21]} 9. Qe2 {[%clk 0:02:44]}  Bg4 {[%clk 0:02:18]} 10. Be3 {[%clk 0:02:41]}  Na5 {[%clk 0:01:37]} 11. h3 {[%clk 0:02:24]}  Bxf3 {[%clk 0:01:34]} 12. Qxf3 {[%clk 0:02:25]}  Nbc4 {[%clk 0:01:15]} 13. O-O-O {[%clk 0:02:09]}  Nxe3 {[%clk 0:01:11]} 14. Qxe3 {[%clk 0:02:10]}  c6 {[%clk 0:00:49]} 15. h4 {[%clk 0:02:10]}  b5 {[%clk 0:00:15]} 16. h5 {[%clk 0:02:08]}  Nxb3+ {[%clk 0:00:14]} 17. axb3 {[%clk 0:02:03]}  Qa5 {[%clk 0:00:13]} 18. Kb1 {[%clk 0:02:03]}  dxe5 {[%clk 0:00:10]} 19. dxe5 {[%clk 0:02:02]}  Rfd8 {[%clk 0:00:09]} 20. hxg6 {[%clk 0:02:01]}  Rxd1+ {[%clk 0:00:05]} 21. Rxd1 {[%clk 0:02:01]}  hxg6 {[%clk 0:00:05]} 22. Ne4 {[%clk 0:02:01]}  Qb6 {[%clk 0:00:05]} 23. Qh3 {[%clk 0:02:00]}  Rd8 {[%clk 0:00:03]} 24. Rh1 {[%clk 0:01:59]}  Qd4 {[%clk 0:00:03]} 25. Ng5 {[%clk 0:01:59]}  Qxf4 {[%clk 0:00:02]} 26. Nf3 {[%clk 0:01:51]}  Rd5 {[%clk 0:00:01]} 27. Qc8+ {[%clk 0:01:48]}  Bf8 {[%clk 0:00:01]} 28. Qxc6 {[%clk 0:01:44]}  Rd4 {[%clk 0:00:00]} 29. e6 {[%clk 0:01:43]} 1-0


[Site "https://www.chess.com"]

[Event "Titled Tuesday Blitz June 20 Early 2023"]
[White "Horak, Martin"]
[Black "Kev4444444444"]
[WhiteFideId "367095"]
[WhiteElo "2091"]
[BlackElo "2191"]
[Result "1-0"]
[Round "5"]
[TimeControl "180+2"]
[Date "2023.06.20"]
[WhiteClock "0:00:11"]
[BlackClock "0:00:04"]
[Board "139"]

1. e4 {[%clk 0:03:00]}  c5 {[%clk 0:02:59]} 2. Nf3 {[%clk 0:03:00]}  g6 {[%clk 0:02:59]} 3. c3 {[%clk 0:02:57]}  Nf6 {[%clk 0:02:58]} 4. e5 {[%clk 0:02:56]}  Nd5 {[%clk 0:02:58]} 5. d4 {[%clk 0:02:57]}  cxd4 {[%clk 0:02:55]} 6. Qxd4 {[%clk 0:02:56]}  Nc7 {[%clk 0:02:49]} 7. Bc4 {[%clk 0:02:44]}  Bg7 {[%clk 0:02:43]} 8. Qh4 {[%clk 0:02:42]}  Nc6 {[%clk 0:02:35]} 9. Bh6 {[%clk 0:02:31]}  Bxh6 {[%clk 0:02:00]} 10. Qxh6 {[%clk 0:02:31]}  d5 {[%clk 0:01:57]} 11. exd6 {[%clk 0:02:17]}  Qxd6 {[%clk 0:01:57]} 12. Qg7 {[%clk 0:01:56]}  Rf8 {[%clk 0:01:48]} 13. O-O {[%clk 0:01:47]}  h5 {[%clk 0:01:43]} 14. Ng5 {[%clk 0:01:40]}  Be6 {[%clk 0:01:32]} 15. Na3 {[%clk 0:01:16]}  O-O-O {[%clk 0:01:27]} 16. Rfe1 {[%clk 0:01:12]}  Bxc4 {[%clk 0:01:22]} 17. Nxc4 {[%clk 0:01:10]}  Qc5 {[%clk 0:01:14]} 18. Ne5 {[%clk 0:01:00]}  Nxe5 {[%clk 0:00:58]} 19. Rxe5 {[%clk 0:01:00]}  Qd6 {[%clk 0:00:47]} 20. Ree1 {[%clk 0:00:48]}  Qf4 {[%clk 0:00:35]} 21. Nf3 {[%clk 0:00:42]}  e6 {[%clk 0:00:29]} 22. h4 {[%clk 0:00:38]}  Nd5 {[%clk 0:00:28]} 23. Rad1 {[%clk 0:00:35]}  Rg8 {[%clk 0:00:24]} 24. Qe5 {[%clk 0:00:33]}  Qf5 {[%clk 0:00:19]} 25. Qd4 {[%clk 0:00:30]}  Kb8 {[%clk 0:00:18]} 26. c4 {[%clk 0:00:22]}  Ne7 {[%clk 0:00:15]} 27. Qe5+ {[%clk 0:00:18]}  Ka8 {[%clk 0:00:14]} 28. Rxd8+ {[%clk 0:00:14]}  Rxd8 {[%clk 0:00:12]} 29. Qc7 {[%clk 0:00:15]}  Nc6 {[%clk 0:00:12]} 30. Ne5 {[%clk 0:00:12]}  Rb8 {[%clk 0:00:04]} 31. Nxc6 {[%clk 0:00:12]}  bxc6 {[%clk 0:00:05]} 32. Qxc6+ {[%clk 0:00:12]}  Rb7 {[%clk 0:00:06]} 33. Rd1 {[%clk 0:00:12]}  Qf6 {[%clk 0:00:06]} 34. Rd7 {[%clk 0:00:11]}  Qxb2 {[%clk 0:00:04]} 35. Rd8# {[%clk 0:00:11]} 1-0


[Site "https://www.chess.com"]

[Event "Titled Tuesday Blitz June 20 Early 2023"]
[White "Csonka, Balazs"]
[Black "Brown, Raehanna"]
[WhiteFideId "742910"]
[BlackFideId "7402740"]
[WhiteElo "2404"]
[BlackElo "1655"]
[Result "1-0"]
[Round "5"]
[TimeControl "180+2"]
[Date "2023.06.20"]
[WhiteClock "0:00:40"]
[BlackClock "0:00:04"]
[Board "141"]

1. c4 {[%clk 0:02:56]}  g6 {[%clk 0:02:59]} 2. d4 {[%clk 0:02:53]}  Bg7 {[%clk 0:02:59]} 3. Nc3 {[%clk 0:02:52]}  Nf6 {[%clk 0:02:58]} 4. e4 {[%clk 0:02:46]}  d6 {[%clk 0:02:58]} 5. f3 {[%clk 0:02:34]}  O-O {[%clk 0:02:54]} 6. Nge2 {[%clk 0:02:35]}  c5 {[%clk 0:02:54]} 7. d5 {[%clk 0:02:34]}  Nbd7 {[%clk 0:02:49]} 8. Bg5 {[%clk 0:02:33]}  a6 {[%clk 0:02:47]} 9. Qd2 {[%clk 0:02:30]}  b5 {[%clk 0:02:45]} 10. cxb5 {[%clk 0:02:29]}  axb5 {[%clk 0:02:44]} 11. Nxb5 {[%clk 0:02:29]}  Ba6 {[%clk 0:02:36]} 12. Nec3 {[%clk 0:02:30]}  Qa5 {[%clk 0:02:32]} 13. a4 {[%clk 0:02:07]}  Rfb8 {[%clk 0:02:29]} 14. Ra3 {[%clk 0:02:07]}  Nb6 {[%clk 0:01:57]} 15. Be2 {[%clk 0:01:45]}  Qb4 {[%clk 0:01:52]} 16. O-O {[%clk 0:01:31]}  Nc4 {[%clk 0:01:14]} 17. Bxc4 {[%clk 0:01:31]}  Qxc4 {[%clk 0:01:14]} 18. Rfa1 {[%clk 0:01:32]}  Qb4 {[%clk 0:00:50]} 19. Nc7 {[%clk 0:01:26]}  Ra7 {[%clk 0:00:46]} 20. N3b5 {[%clk 0:01:17]}  Bxb5 {[%clk 0:00:36]} 21. Nxb5 {[%clk 0:01:12]}  Ra5 {[%clk 0:00:31]} 22. Qc2 {[%clk 0:01:02]}  Ne8 {[%clk 0:00:15]} 23. R1a2 {[%clk 0:00:47]}  c4 {[%clk 0:00:10]} 24. Kf1 {[%clk 0:00:41]}  Kf8 {[%clk 0:00:08]} 25. Bd2 {[%clk 0:00:40]}  Qc5 {[%clk 0:00:04]} 26. Bxa5 {[%clk 0:00:40]} 1-0


[Site "https://www.chess.com"]

[Event "Titled Tuesday Blitz June 20 Early 2023"]
[White "Filgueira, Hernan"]
[Black "Balla, Tamas-Kristof"]
[WhiteFideId "101770"]
[BlackFideId "1208497"]
[WhiteElo "2363"]
[BlackElo "2334"]
[Result "0-1"]
[Round "5"]
[TimeControl "180+2"]
[Date "2023.06.20"]
[WhiteClock "0:00:00"]
[BlackClock "0:00:05"]
[Board "142"]

1. e4 {[%clk 0:03:00]}  c5 {[%clk 0:02:39]} 2. Nf3 {[%clk 0:02:59]}  Nc6 {[%clk 0:02:39]} 3. Bb5 {[%clk 0:02:58]}  Nf6 {[%clk 0:02:38]} 4. d3 {[%clk 0:02:54]}  g6 {[%clk 0:02:35]} 5. O-O {[%clk 0:02:53]}  Bg7 {[%clk 0:02:35]} 6. c3 {[%clk 0:02:53]}  O-O {[%clk 0:02:34]} 7. h3 {[%clk 0:02:51]}  Qc7 {[%clk 0:02:26]} 8. Re1 {[%clk 0:02:47]}  e5 {[%clk 0:02:23]} 9. Nbd2 {[%clk 0:02:42]}  d6 {[%clk 0:02:22]} 10. Ba4 {[%clk 0:02:40]}  Be6 {[%clk 0:02:19]} 11. Nf1 {[%clk 0:02:31]}  a6 {[%clk 0:02:16]} 12. Bg5 {[%clk 0:02:29]}  b5 {[%clk 0:02:13]} 13. Bc2 {[%clk 0:02:29]}  Nh5 {[%clk 0:02:05]} 14. Ne3 {[%clk 0:02:13]}  Qd7 {[%clk 0:01:56]} 15. Nd5 {[%clk 0:02:06]}  Bxd5 {[%clk 0:01:30]} 16. exd5 {[%clk 0:02:05]}  Ne7 {[%clk 0:01:30]} 17. d4 {[%clk 0:01:52]}  f6 {[%clk 0:01:17]} 18. Bh4 {[%clk 0:01:22]}  cxd4 {[%clk 0:01:01]} 19. cxd4 {[%clk 0:01:20]}  Nxd5 {[%clk 0:01:01]} 20. Bb3 {[%clk 0:01:17]}  Nf4 {[%clk 0:00:53]} 21. dxe5 {[%clk 0:01:04]}  dxe5 {[%clk 0:00:51]} 22. g3 {[%clk 0:01:02]}  Nxh3+ {[%clk 0:00:36]} 23. Kh2 {[%clk 0:00:57]}  Rad8 {[%clk 0:00:20]} 24. Qxd5+ {[%clk 0:00:51]}  Qxd5 {[%clk 0:00:20]} 25. Bxd5+ {[%clk 0:00:50]}  Rxd5 {[%clk 0:00:21]} 26. Kxh3 {[%clk 0:00:50]}  g5 {[%clk 0:00:21]} 27. g4 {[%clk 0:00:40]}  gxh4 {[%clk 0:00:21]} 28. Nxh4 {[%clk 0:00:40]}  Rd2 {[%clk 0:00:21]} 29. Kg2 {[%clk 0:00:31]}  Bh6 {[%clk 0:00:21]} 30. Nf5 {[%clk 0:00:30]}  Bf4 {[%clk 0:00:21]} 31. Rab1 {[%clk 0:00:29]}  Rc8 {[%clk 0:00:22]} 32. Red1 {[%clk 0:00:24]}  Rcc2 {[%clk 0:00:18]} 33. Rxd2 {[%clk 0:00:24]}  Rxd2 {[%clk 0:00:18]} 34. Kf3 {[%clk 0:00:25]}  Rc2 {[%clk 0:00:16]} 35. a4 {[%clk 0:00:23]}  Kf7 {[%clk 0:00:16]} 36. axb5 {[%clk 0:00:23]}  axb5 {[%clk 0:00:17]} 37. Ra1 {[%clk 0:00:23]}  Rxb2 {[%clk 0:00:15]} 38. Ra7+ {[%clk 0:00:23]}  Kg8 {[%clk 0:00:15]} 39. Ke4 {[%clk 0:00:21]}  Rd2 {[%clk 0:00:13]} 40. Ne7+ {[%clk 0:00:19]}  Kf8 {[%clk 0:00:10]} 41. Kf5 {[%clk 0:00:19]}  b4 {[%clk 0:00:08]} 42. Ke6 {[%clk 0:00:18]}  Rd8 {[%clk 0:00:06]} 43. Nf5 {[%clk 0:00:16]}  Rb8 {[%clk 0:00:04]} 44. Rf7+ {[%clk 0:00:05]}  Kg8 {[%clk 0:00:04]} 45. Rg7+ {[%clk 0:00:06]}  Kh8 {[%clk 0:00:05]} 46. Ra7 {[%clk 0:00:04]}  b3 {[%clk 0:00:05]} 47. Nd6 {[%clk 0:00:05]}  b2 {[%clk 0:00:04]} 48. Nf7+ {[%clk 0:00:06]}  Kg8 {[%clk 0:00:05]} 49. g5 {[%clk 0:00:01]}  b1=Q {[%clk 0:00:05]} 50. Nh6+ {[%clk 0:00:01]}  Kh8 {[%clk 0:00:03]} 51. Nf7+ {[%clk 0:00:01]}  Kg8 {[%clk 0:00:03]} 52. Nh6+ {[%clk 0:00:01]}  Kf8 {[%clk 0:00:04]} 53. Rf7+ {[%clk 0:00:01]}  Ke8 {[%clk 0:00:04]} 54. Re7+ {[%clk 0:00:00]}  Kd8 {[%clk 0:00:05]} 0-1


[Site "https://www.chess.com"]

[Event "Titled Tuesday Blitz June 20 Early 2023"]
[White "Yelisieiev, Yevhenii"]
[Black "Carrasco Miranda, Andres"]
[WhiteFideId "14139642"]
[BlackFideId "3405990"]
[WhiteElo "2403"]
[BlackElo "2183"]
[Result "1-0"]
[Round "5"]
[TimeControl "180+2"]
[Date "2023.06.20"]
[WhiteClock "0:00:02"]
[BlackClock "0:00:00"]
[Board "144"]

1. d4 {[%clk 0:02:54]}  Nf6 {[%clk 0:01:48]} 2. Nf3 {[%clk 0:02:52]}  g6 {[%clk 0:01:48]} 3. g3 {[%clk 0:02:52]}  Bg7 {[%clk 0:01:48]} 4. Bg2 {[%clk 0:02:53]}  O-O {[%clk 0:01:48]} 5. O-O {[%clk 0:02:54]}  d6 {[%clk 0:01:48]} 6. b3 {[%clk 0:02:54]}  Nc6 {[%clk 0:01:49]} 7. Bb2 {[%clk 0:02:55]}  a5 {[%clk 0:01:49]} 8. c4 {[%clk 0:02:54]}  a4 {[%clk 0:01:49]} 9. Nc3 {[%clk 0:02:54]}  a3 {[%clk 0:01:48]} 10. Bc1 {[%clk 0:02:54]}  Bf5 {[%clk 0:01:46]} 11. Nb5 {[%clk 0:02:34]}  Ne4 {[%clk 0:01:42]} 12. Nh4 {[%clk 0:01:43]}  e5 {[%clk 0:01:23]} 13. Nxf5 {[%clk 0:01:37]}  gxf5 {[%clk 0:01:24]} 14. d5 {[%clk 0:01:35]}  Nd4 {[%clk 0:01:22]} 15. Bxe4 {[%clk 0:01:17]}  fxe4 {[%clk 0:01:18]} 16. Nxa3 {[%clk 0:01:14]}  Qd7 {[%clk 0:00:52]} 17. Nc2 {[%clk 0:01:01]}  c5 {[%clk 0:00:48]} 18. dxc6 {[%clk 0:00:57]}  bxc6 {[%clk 0:00:49]} 19. Bb2 {[%clk 0:00:56]}  c5 {[%clk 0:00:49]} 20. Ne3 {[%clk 0:00:54]}  f5 {[%clk 0:00:46]} 21. Nd5 {[%clk 0:00:50]}  f4 {[%clk 0:00:46]} 22. Bxd4 {[%clk 0:00:41]}  cxd4 {[%clk 0:00:37]} 23. a4 {[%clk 0:00:29]}  Qh3 {[%clk 0:00:35]} 24. Kh1 {[%clk 0:00:19]}  Rae8 {[%clk 0:00:32]} 25. Qe1 {[%clk 0:00:16]}  f3 {[%clk 0:00:20]} 26. exf3 {[%clk 0:00:13]}  exf3 {[%clk 0:00:21]} 27. Rg1 {[%clk 0:00:14]}  e4 {[%clk 0:00:20]} 28. Nf4 {[%clk 0:00:13]}  Rxf4 {[%clk 0:00:18]} 29. gxf4 {[%clk 0:00:13]}  Re6 {[%clk 0:00:18]} 30. Rg3 {[%clk 0:00:14]}  Qh4 {[%clk 0:00:18]} 31. Qg1 {[%clk 0:00:14]}  Re7 {[%clk 0:00:03]} 32. Rg4 {[%clk 0:00:14]}  Qh5 {[%clk 0:00:02]} 33. Re1 {[%clk 0:00:14]}  e3 {[%clk 0:00:02]} 34. Rg5 {[%clk 0:00:10]}  Qh4 {[%clk 0:00:01]} 35. Rf1 {[%clk 0:00:02]}  e2 {[%clk 0:00:01]} 36. Re1 {[%clk 0:00:03]}  d3 {[%clk 0:00:00]} 37. Rd5 {[%clk 0:00:02]} 1-0


[Site "https://www.chess.com"]

[Event "Titled Tuesday Blitz June 20 Early 2023"]
[White "i_like_explosions"]
[Black "whiteglovethief"]
[WhiteElo "2392"]
[BlackElo "2521"]
[Result "1-0"]
[Round "5"]
[TimeControl "180+2"]
[Date "2023.06.20"]
[WhiteClock "0:00:16"]
[BlackClock "0:00:01"]
[Board "145"]

1. d4 {[%clk 0:03:00]}  Nf6 {[%clk 0:02:58]} 2. Bg5 {[%clk 0:03:01]}  Ne4 {[%clk 0:02:57]} 3. Bf4 {[%clk 0:03:01]}  e6 {[%clk 0:02:57]} 4. Nd2 {[%clk 0:02:55]}  Bd6 {[%clk 0:02:45]} 5. Bxd6 {[%clk 0:02:51]}  Nxd6 {[%clk 0:02:44]} 6. e4 {[%clk 0:02:51]}  f5 {[%clk 0:02:34]} 7. e5 {[%clk 0:02:48]}  Nf7 {[%clk 0:02:35]} 8. f4 {[%clk 0:02:47]}  O-O {[%clk 0:02:35]} 9. Ngf3 {[%clk 0:02:47]}  b6 {[%clk 0:02:33]} 10. Be2 {[%clk 0:02:47]}  Bb7 {[%clk 0:02:33]} 11. O-O {[%clk 0:02:48]}  c5 {[%clk 0:02:32]} 12. c3 {[%clk 0:02:48]}  d6 {[%clk 0:02:30]} 13. a4 {[%clk 0:02:43]}  dxe5 {[%clk 0:02:28]} 14. dxe5 {[%clk 0:02:33]}  Nc6 {[%clk 0:02:23]} 15. Nc4 {[%clk 0:02:31]}  Qc7 {[%clk 0:02:21]} 16. Qc2 {[%clk 0:02:26]}  Rad8 {[%clk 0:02:22]} 17. Rad1 {[%clk 0:02:23]}  Ne7 {[%clk 0:02:19]} 18. Rxd8 {[%clk 0:02:19]}  Rxd8 {[%clk 0:02:18]} 19. Rd1 {[%clk 0:02:19]}  Nd5 {[%clk 0:02:18]} 20. g3 {[%clk 0:02:15]}  h6 {[%clk 0:02:15]} 21. h4 {[%clk 0:02:09]}  a6 {[%clk 0:02:11]} 22. Kf2 {[%clk 0:02:06]}  b5 {[%clk 0:02:11]} 23. axb5 {[%clk 0:02:05]}  axb5 {[%clk 0:02:12]} 24. Ne3 {[%clk 0:02:05]}  Nxe3 {[%clk 0:02:03]} 25. Kxe3 {[%clk 0:02:05]}  Rxd1 {[%clk 0:01:53]} 26. Qxd1 {[%clk 0:02:03]}  c4 {[%clk 0:01:54]} 27. Qd4 {[%clk 0:01:59]}  Qc6 {[%clk 0:01:40]} 28. Qd1 {[%clk 0:01:36]}  Qc5+ {[%clk 0:01:19]} 29. Nd4 {[%clk 0:01:32]}  Bd5 {[%clk 0:01:12]} 30. Qa1 {[%clk 0:01:27]}  Nd8 {[%clk 0:01:07]} 31. Qa3 {[%clk 0:01:19]}  Qb6 {[%clk 0:01:00]} 32. Qb4 {[%clk 0:01:16]}  Nc6 {[%clk 0:00:55]} 33. Qxb5 {[%clk 0:01:12]}  Qa7 {[%clk 0:00:55]} 34. Bxc4 {[%clk 0:01:06]}  Nxd4 {[%clk 0:00:45]} 35. cxd4 {[%clk 0:01:00]}  Bxc4 {[%clk 0:00:41]} 36. Qxc4 {[%clk 0:01:00]}  Qb6 {[%clk 0:00:33]} 37. b4 {[%clk 0:00:59]}  Kh7 {[%clk 0:00:34]} 38. Kd3 {[%clk 0:00:54]}  Kg6 {[%clk 0:00:29]} 39. Qc3 {[%clk 0:00:47]}  Kh5 {[%clk 0:00:28]} 40. Kc4 {[%clk 0:00:46]}  Kg4 {[%clk 0:00:27]} 41. Kb3 {[%clk 0:00:45]}  Qb5 {[%clk 0:00:25]} 42. Qc4 {[%clk 0:00:34]}  Qd7 {[%clk 0:00:20]} 43. Qd3 {[%clk 0:00:29]}  Qd5+ {[%clk 0:00:20]} 44. Ka3 {[%clk 0:00:26]}  Qa8+ {[%clk 0:00:20]} 45. Kb2 {[%clk 0:00:26]}  Qd5 {[%clk 0:00:19]} 46. b5 {[%clk 0:00:26]}  Qg2+ {[%clk 0:00:18]} 47. Kb3 {[%clk 0:00:26]}  Qd5+ {[%clk 0:00:19]} 48. Kb4 {[%clk 0:00:26]}  Qb7 {[%clk 0:00:18]} 49. Qc3 {[%clk 0:00:25]}  g6 {[%clk 0:00:14]} 50. Qc6 {[%clk 0:00:20]}  Qa7 {[%clk 0:00:14]} 51. b6 {[%clk 0:00:20]}  Qa2 {[%clk 0:00:14]} 52. b7 {[%clk 0:00:20]}  Qb2+ {[%clk 0:00:14]} 53. Kc5 {[%clk 0:00:21]}  Qc3+ {[%clk 0:00:14]} 54. Kd6 {[%clk 0:00:21]}  Qxd4+ {[%clk 0:00:14]} 55. Kc7 {[%clk 0:00:21]}  Qa7 {[%clk 0:00:13]} 56. Kc8 {[%clk 0:00:21]}  Kxg3 {[%clk 0:00:11]} 57. b8=Q {[%clk 0:00:21]}  Qe3 {[%clk 0:00:10]} 58. Qxe6 {[%clk 0:00:21]}  Qxf4 {[%clk 0:00:05]} 59. Qxg6+ {[%clk 0:00:21]}  Kxh4 {[%clk 0:00:04]} 60. Qbd6 {[%clk 0:00:18]}  Qc4+ {[%clk 0:00:04]} 61. Kd8 {[%clk 0:00:18]}  h5 {[%clk 0:00:02]} 62. Qdf6+ {[%clk 0:00:18]}  Kh3 {[%clk 0:00:03]} 63. Qxh5+ {[%clk 0:00:18]}  Kg3 {[%clk 0:00:02]} 64. Qfg5+ {[%clk 0:00:18]}  Kf2 {[%clk 0:00:02]} 65. Qxf5+ {[%clk 0:00:18]}  Ke1 {[%clk 0:00:03]} 66. Qh1+ {[%clk 0:00:18]}  Kd2 {[%clk 0:00:03]} 67. Qf2+ {[%clk 0:00:18]}  Kc3 {[%clk 0:00:04]} 68. Qhf3+ {[%clk 0:00:17]}  Kb4 {[%clk 0:00:04]} 69. Qf4 {[%clk 0:00:18]}  Ka3 {[%clk 0:00:04]} 70. Q2f3+ {[%clk 0:00:16]}  Kb2 {[%clk 0:00:01]} 71. Qxc4 {[%clk 0:00:16]} 1-0


[Site "https://www.chess.com"]